[Event "Titled Tuesday Blitz April 18 Early 2023"]
[White "Lamaze, Simon"]
[Black "littlepillow2010"]
[WhiteFideId "36069264"]
[WhiteElo "2272"]
[BlackElo "2428"]
[Result "1-0"]
[Round "04"]
[TimeControl "180+2"]
[Date "2023.04.18"]
[WhiteClock "0:00:45"]
[BlackClock "0:00:07"]

1. e3 {[%clk 0:02:52]}  d5 {[%clk 0:02:57]} 2. Nf3 {[%clk 0:02:50]}  Nf6 {[%clk 0:02:55]} 3. b3 {[%clk 0:02:50]}  c5 {[%clk 0:02:55]} 4. Be2 {[%clk 0:02:48]}  Nc6 {[%clk 0:02:55]} 5. Bb2 {[%clk 0:02:45]}  g6 {[%clk 0:02:54]} 6. Ne5 {[%clk 0:02:41]}  Nxe5 {[%clk 0:02:50]} 7. Bxe5 {[%clk 0:02:38]}  Bg7 {[%clk 0:02:50]} 8. O-O {[%clk 0:02:38]}  O-O {[%clk 0:02:50]} 9. c4 {[%clk 0:02:36]}  dxc4 {[%clk 0:02:29]} 10. bxc4 {[%clk 0:02:36]}  Bf5 {[%clk 0:02:25]} 11. Nc3 {[%clk 0:02:35]}  Qd7 {[%clk 0:02:17]} 12. d3 {[%clk 0:02:30]}  Rad8 {[%clk 0:02:16]} 13. Qb3 {[%clk 0:02:30]}  Bxd3 {[%clk 0:02:05]} 14. Bxd3 {[%clk 0:02:21]}  Qxd3 {[%clk 0:02:06]} 15. Qxb7 {[%clk 0:02:21]}  Qxc4 {[%clk 0:02:03]} 16. Qxa7 {[%clk 0:02:21]}  Rd7 {[%clk 0:01:16]} 17. Qa5 {[%clk 0:02:08]}  Qb4 {[%clk 0:01:11]} 18. Qa6 {[%clk 0:02:03]}  Qb7 {[%clk 0:00:47]} 19. Qxb7 {[%clk 0:02:02]}  Rxb7 {[%clk 0:00:48]} 20. Rab1 {[%clk 0:02:03]}  Rxb1 {[%clk 0:00:42]} 21. Rxb1 {[%clk 0:02:03]}  Rd8 {[%clk 0:00:36]} 22. Rd1 {[%clk 0:01:57]}  Rxd1+ {[%clk 0:00:33]} 23. Nxd1 {[%clk 0:01:58]}  Nd5 {[%clk 0:00:32]} 24. Bxg7 {[%clk 0:01:59]}  Kxg7 {[%clk 0:00:32]} 25. Kf1 {[%clk 0:01:59]}  Kf6 {[%clk 0:00:22]} 26. Ke2 {[%clk 0:01:42]}  Ke5 {[%clk 0:00:19]} 27. a3 {[%clk 0:01:40]}  c4 {[%clk 0:00:14]} 28. Nb2 {[%clk 0:01:34]}  Nb6 {[%clk 0:00:10]} 29. Kd2 {[%clk 0:01:33]}  Kd5 {[%clk 0:00:10]} 30. Kc3 {[%clk 0:01:33]}  Kc5 {[%clk 0:00:10]} 31. e4 {[%clk 0:01:33]}  f5 {[%clk 0:00:09]} 32. f3 {[%clk 0:01:34]}  fxe4 {[%clk 0:00:09]} 33. fxe4 {[%clk 0:01:35]}  Kb5 {[%clk 0:00:05]} 34. a4+ {[%clk 0:01:34]}  Kc5 {[%clk 0:00:04]} 35. a5 {[%clk 0:01:35]}  Nd7 {[%clk 0:00:04]} 36. Nxc4 {[%clk 0:01:35]}  Nb8 {[%clk 0:00:04]} 37. Ne5 {[%clk 0:01:30]}  Kb5 {[%clk 0:00:03]} 38. Kd4 {[%clk 0:01:30]}  Kxa5 {[%clk 0:00:02]} 39. Kd5 {[%clk 0:01:31]}  Kb5 {[%clk 0:00:03]} 40. Ke6 {[%clk 0:01:31]}  Kc5 {[%clk 0:00:03]} 41. Nf7 {[%clk 0:01:27]}  Kd4 {[%clk 0:00:02]} 42. e5 {[%clk 0:01:27]}  Nc6 {[%clk 0:00:01]} 43. g3 {[%clk 0:01:21]}  Ke3 {[%clk 0:00:01]} 44. Kd5 {[%clk 0:01:20]}  Nd4 {[%clk 0:00:01]} 45. Ng5 {[%clk 0:01:19]}  Nf3 {[%clk 0:00:02]} 46. Nxh7 {[%clk 0:00:49]}  Nxh2 {[%clk 0:00:02]} 47. Nf8 {[%clk 0:00:50]}  Nf1 {[%clk 0:00:01]} 48. Nxg6 {[%clk 0:00:49]}  Nxg3 {[%clk 0:00:01]} 49. Nxe7 {[%clk 0:00:48]}  Ne2 {[%clk 0:00:01]} 50. Ke6 {[%clk 0:00:44]}  Nf4+ {[%clk 0:00:01]} 51. Kf5 {[%clk 0:00:44]}  Nd3 {[%clk 0:00:02]} 52. e6 {[%clk 0:00:43]}  Kd4 {[%clk 0:00:01]} 53. Nc6+ {[%clk 0:00:43]}  Kd5 {[%clk 0:00:02]} 54. e7 {[%clk 0:00:44]}  Kxc6 {[%clk 0:00:02]} 55. e8=Q+ {[%clk 0:00:44]}  Kd5 {[%clk 0:00:03]} 56. Qd8+ {[%clk 0:00:44]}  Kc4 {[%clk 0:00:03]} 57. Ke4 {[%clk 0:00:44]}  Nc5+ {[%clk 0:00:04]} 58. Ke3 {[%clk 0:00:45]}  Nb3 {[%clk 0:00:04]} 59. Qg8+ {[%clk 0:00:44]}  Kb4 {[%clk 0:00:03]} 60. Kd3 {[%clk 0:00:45]}  Nc5+ {[%clk 0:00:04]} 61. Kd4 {[%clk 0:00:45]}  Na4 {[%clk 0:00:05]} 62. Qb8+ {[%clk 0:00:45]}  Ka3 {[%clk 0:00:05]} 63. Kc4 {[%clk 0:00:44]}  Nb2+ {[%clk 0:00:06]} 64. Kc3 {[%clk 0:00:44]}  Na4+ {[%clk 0:00:07]} 65. Kc2 {[%clk 0:00:45]}  Ka2 {[%clk 0:00:07]} 66. Qb3+ {[%clk 0:00:45]} 1-0


[Site "https://www.chess.com"]

[Event "Titled Tuesday Blitz April 18 Early 2023"]
[White "Urbina Perez, Juan Antonio"]
[Black "Girya, Olga"]
[WhiteFideId "2217368"]
[BlackFideId "4195752"]
[WhiteElo "2197"]
[BlackElo "2263"]
[Result "0-1"]
[Round "04"]
[TimeControl "180+2"]
[Date "2023.04.18"]
[WhiteClock "0:01:26"]
[BlackClock "0:00:54"]

1. c4 {[%clk 0:03:00]}  e5 {[%clk 0:02:58]} 2. d3 {[%clk 0:02:59]}  Nf6 {[%clk 0:02:58]} 3. Nf3 {[%clk 0:02:59]}  Nc6 {[%clk 0:02:54]} 4. Nc3 {[%clk 0:02:56]}  Bb4 {[%clk 0:02:52]} 5. Bd2 {[%clk 0:02:51]}  O-O {[%clk 0:02:49]} 6. e3 {[%clk 0:02:49]}  d5 {[%clk 0:02:46]} 7. cxd5 {[%clk 0:02:48]}  Nxd5 {[%clk 0:02:45]} 8. Be2 {[%clk 0:02:47]}  Nxc3 {[%clk 0:02:35]} 9. Bxc3 {[%clk 0:02:44]}  Bxc3+ {[%clk 0:02:34]} 10. bxc3 {[%clk 0:02:45]}  Qe7 {[%clk 0:02:22]} 11. O-O {[%clk 0:02:43]}  e4 {[%clk 0:02:18]} 12. dxe4 {[%clk 0:02:40]}  Qxe4 {[%clk 0:02:18]} 13. Nd4 {[%clk 0:02:39]}  Ne5 {[%clk 0:02:02]} 14. Bf3 {[%clk 0:02:38]}  Nxf3+ {[%clk 0:02:01]} 15. Qxf3 {[%clk 0:02:39]}  Qxf3 {[%clk 0:01:59]} 16. Nxf3 {[%clk 0:02:39]}  Rd8 {[%clk 0:01:52]} 17. Rfd1 {[%clk 0:02:36]}  Be6 {[%clk 0:01:49]} 18. Nd4 {[%clk 0:02:30]}  Bc4 {[%clk 0:01:49]} 19. f3 {[%clk 0:02:28]}  c5 {[%clk 0:01:47]} 20. Nb3 {[%clk 0:02:28]}  b6 {[%clk 0:01:45]} 21. Kf2 {[%clk 0:02:26]}  Kf8 {[%clk 0:01:40]} 22. Ke1 {[%clk 0:02:25]}  a5 {[%clk 0:01:36]} 23. Nd2 {[%clk 0:02:19]}  Be6 {[%clk 0:01:26]} 24. a3 {[%clk 0:02:16]}  Rd3 {[%clk 0:01:25]} 25. c4 {[%clk 0:02:02]}  Rxe3+ {[%clk 0:01:21]} 26. Kf2 {[%clk 0:02:02]}  Rd3 {[%clk 0:01:16]} 27. Ne4 {[%clk 0:01:53]}  Bxc4 {[%clk 0:01:05]} 28. Nd6 {[%clk 0:01:41]}  Rd8 {[%clk 0:00:54]} 29. Rxd3 {[%clk 0:01:34]}  Bxd3 {[%clk 0:00:53]} 30. Nb7 {[%clk 0:01:27]}  Rd7 {[%clk 0:00:53]} 31. Rd1 {[%clk 0:01:26]}  c4 {[%clk 0:00:54]} 0-1


[Site "https://www.chess.com"]

[Event "Titled Tuesday Blitz April 18 Early 2023"]
[White "Smiechu"]
[Black "koncheto"]
[WhiteElo "2357"]
[BlackElo "2547"]
[Result "0-1"]
[Round "04"]
[TimeControl "180+2"]
[Date "2023.04.18"]
[WhiteClock "0:01:33"]
[BlackClock "0:01:02"]

1. e4 {[%clk 0:03:00]}  e5 {[%clk 0:02:59]} 2. Nf3 {[%clk 0:03:00]}  Nf6 {[%clk 0:02:59]} 3. Nxe5 {[%clk 0:02:52]}  Nc6 {[%clk 0:02:58]} 4. Nxc6 {[%clk 0:02:49]}  dxc6 {[%clk 0:02:58]} 5. Nc3 {[%clk 0:02:45]}  Bc5 {[%clk 0:02:57]} 6. Be2 {[%clk 0:02:42]}  h5 {[%clk 0:02:45]} 7. O-O {[%clk 0:02:40]}  Qd6 {[%clk 0:02:45]} 8. d3 {[%clk 0:02:35]}  Be6 {[%clk 0:02:16]} 9. Na4 {[%clk 0:02:25]}  Ng4 {[%clk 0:02:00]} 10. g3 {[%clk 0:02:20]}  Bxf2+ {[%clk 0:01:56]} 11. Rxf2 {[%clk 0:02:16]}  Nxf2 {[%clk 0:01:56]} 12. Kxf2 {[%clk 0:02:10]}  Qd4+ {[%clk 0:01:56]} 13. Be3 {[%clk 0:02:10]}  Qxa4 {[%clk 0:01:57]} 14. d4 {[%clk 0:01:56]}  O-O-O {[%clk 0:01:51]} 15. b3 {[%clk 0:01:56]}  Qa5 {[%clk 0:01:47]} 16. c4 {[%clk 0:01:53]}  Rhe8 {[%clk 0:01:34]} 17. Bd2 {[%clk 0:01:44]}  Qa3 {[%clk 0:01:22]} 18. d5 {[%clk 0:01:44]}  cxd5 {[%clk 0:01:20]} 19. cxd5 {[%clk 0:01:44]}  Bxd5 {[%clk 0:01:04]} 20. exd5 {[%clk 0:01:43]}  Qc5+ {[%clk 0:01:03]} 21. Kf1 {[%clk 0:01:33]}  Qxd5 {[%clk 0:01:02]} 0-1


[Site "https://www.chess.com"]

[Event "Titled Tuesday Blitz April 18 Early 2023"]
[White "Elgersma, Onno"]
[Black "Zaichenko, Daria"]
[WhiteFideId "1053531"]
[BlackFideId "4197453"]
[WhiteElo "2252"]
[BlackElo "2039"]
[Result "1-0"]
[Round "04"]
[TimeControl "180+2"]
[Date "2023.04.18"]
[WhiteClock "0:00:05"]
[BlackClock "0:00:02"]

1. Nf3 {[%clk 0:02:57]}  Nf6 {[%clk 0:02:59]} 2. c4 {[%clk 0:02:56]}  e6 {[%clk 0:02:59]} 3. g3 {[%clk 0:02:56]}  d5 {[%clk 0:02:59]} 4. Bg2 {[%clk 0:02:56]}  Be7 {[%clk 0:02:59]} 5. O-O {[%clk 0:02:57]}  O-O {[%clk 0:02:59]} 6. d4 {[%clk 0:02:48]}  dxc4 {[%clk 0:02:59]} 7. Qc2 {[%clk 0:02:48]}  Bd7 {[%clk 0:02:53]} 8. Ne5 {[%clk 0:02:43]}  Nc6 {[%clk 0:02:46]} 9. Rd1 {[%clk 0:02:29]}  Nd5 {[%clk 0:02:33]} 10. Nxd7 {[%clk 0:02:26]}  Qxd7 {[%clk 0:02:32]} 11. Qxc4 {[%clk 0:02:27]}  Nb6 {[%clk 0:02:29]} 12. Qd3 {[%clk 0:02:21]}  Rad8 {[%clk 0:02:24]} 13. Be3 {[%clk 0:02:22]}  e5 {[%clk 0:02:19]} 14. dxe5 {[%clk 0:02:06]}  Qxd3 {[%clk 0:02:17]} 15. exd3 {[%clk 0:01:56]}  Nxe5 {[%clk 0:02:16]} 16. d4 {[%clk 0:01:56]}  Nec4 {[%clk 0:02:16]} 17. Bxb7 {[%clk 0:01:44]}  Bf6 {[%clk 0:02:07]} 18. Nc3 {[%clk 0:01:42]}  Nxb2 {[%clk 0:02:04]} 19. Rdc1 {[%clk 0:01:18]}  N6c4 {[%clk 0:01:58]} 20. Nd5 {[%clk 0:01:09]}  Nxe3 {[%clk 0:01:51]} 21. Nxf6+ {[%clk 0:01:08]}  gxf6 {[%clk 0:01:51]} 22. fxe3 {[%clk 0:01:08]}  Rfe8 {[%clk 0:01:48]} 23. Rc3 {[%clk 0:00:50]}  Na4 {[%clk 0:01:47]} 24. Rb3 {[%clk 0:00:40]}  Nb6 {[%clk 0:01:46]} 25. Rc1 {[%clk 0:00:40]}  Re7 {[%clk 0:01:45]} 26. Kf2 {[%clk 0:00:38]}  Kg7 {[%clk 0:01:43]} 27. Bg2 {[%clk 0:00:38]}  f5 {[%clk 0:01:39]} 28. Rc5 {[%clk 0:00:37]}  Kg6 {[%clk 0:01:35]} 29. Rbb5 {[%clk 0:00:37]}  Rde8 {[%clk 0:01:36]} 30. Rc3 {[%clk 0:00:22]}  Na4 {[%clk 0:01:13]} 31. Ra3 {[%clk 0:00:21]}  Nb6 {[%clk 0:01:13]} 32. Rc3 {[%clk 0:00:17]}  Na4 {[%clk 0:01:13]} 33. Rc6+ {[%clk 0:00:17]}  f6 {[%clk 0:01:11]} 34. Rb3 {[%clk 0:00:17]}  Nb6 {[%clk 0:01:06]} 35. h4 {[%clk 0:00:17]}  Nc8 {[%clk 0:01:04]} 36. Bf3 {[%clk 0:00:17]}  Nd6 {[%clk 0:01:03]} 37. Rbc3 {[%clk 0:00:18]}  Rb8 {[%clk 0:00:50]} 38. Rxc7 {[%clk 0:00:14]}  Rxc7 {[%clk 0:00:47]} 39. Rxc7 {[%clk 0:00:15]}  Rb2+ {[%clk 0:00:47]} 40. Ke1 {[%clk 0:00:13]}  Rxa2 {[%clk 0:00:45]} 41. Rd7 {[%clk 0:00:12]}  Ne4 {[%clk 0:00:38]} 42. Bxe4 {[%clk 0:00:08]}  fxe4 {[%clk 0:00:38]} 43. Re7 {[%clk 0:00:09]}  f5 {[%clk 0:00:36]} 44. Re5 {[%clk 0:00:05]}  a5 {[%clk 0:00:35]} 45. Rb5 {[%clk 0:00:05]}  a4 {[%clk 0:00:34]} 46. Kf1 {[%clk 0:00:06]}  a3 {[%clk 0:00:34]} 47. Ra5 {[%clk 0:00:06]}  Ra1+ {[%clk 0:00:31]} 48. Kg2 {[%clk 0:00:06]}  a2 {[%clk 0:00:29]} 49. Kh2 {[%clk 0:00:06]}  Kf6 {[%clk 0:00:25]} 50. d5 {[%clk 0:00:04]}  Ke5 {[%clk 0:00:24]} 51. Kg2 {[%clk 0:00:05]}  Kd6 {[%clk 0:00:21]} 52. Kh2 {[%clk 0:00:05]}  Ke5 {[%clk 0:00:19]} 53. Kg2 {[%clk 0:00:05]}  Re1 {[%clk 0:00:17]} 54. Rxa2 {[%clk 0:00:05]}  Rxe3 {[%clk 0:00:17]} 55. Ra7 {[%clk 0:00:06]}  Rd3 {[%clk 0:00:17]} 56. Rxh7 {[%clk 0:00:06]}  Kxd5 {[%clk 0:00:15]} 57. Rd7+ {[%clk 0:00:06]}  Kc4 {[%clk 0:00:14]} 58. Rc7+ {[%clk 0:00:05]}  Kb3 {[%clk 0:00:14]} 59. h5 {[%clk 0:00:05]}  Rd2+ {[%clk 0:00:09]} 60. Kg1 {[%clk 0:00:05]}  e3 {[%clk 0:00:09]} 61. Re7 {[%clk 0:00:04]}  Rd3 {[%clk 0:00:07]} 62. h6 {[%clk 0:00:04]}  e2 {[%clk 0:00:06]} 63. Kf2 {[%clk 0:00:04]}  Rd6 {[%clk 0:00:04]} 64. Re3+ {[%clk 0:00:04]}  Kc4 {[%clk 0:00:02]} 65. Rxe2 {[%clk 0:00:04]}  Rxh6 {[%clk 0:00:02]} 66. Kf3 {[%clk 0:00:05]}  Kd5 {[%clk 0:00:02]} 67. Kf4 {[%clk 0:00:05]} 1-0


[Site "https://www.chess.com"]

[Event "Titled Tuesday Blitz April 18 Early 2023"]
[White "Dushyant Sharma"]
[Black "Mikhaylova, Irina"]
[WhiteFideId "25065130"]
[BlackFideId "4109040"]
[WhiteElo "2198"]
[BlackElo "1975"]
[Result "1-0"]
[Round "04"]
[TimeControl "180+2"]
[Date "2023.04.18"]
[WhiteClock "0:01:22"]
[BlackClock "0:00:06"]

1. e4 {[%clk 0:03:00]}  c5 {[%clk 0:02:59]} 2. Nf3 {[%clk 0:03:00]}  Nc6 {[%clk 0:03:00]} 3. d4 {[%clk 0:03:01]}  cxd4 {[%clk 0:03:00]} 4. Nxd4 {[%clk 0:03:01]}  e5 {[%clk 0:03:01]} 5. Nxc6 {[%clk 0:03:01]}  dxc6 {[%clk 0:03:01]} 6. Qxd8+ {[%clk 0:03:01]}  Kxd8 {[%clk 0:03:02]} 7. Nc3 {[%clk 0:03:02]}  Be6 {[%clk 0:03:01]} 8. f4 {[%clk 0:02:57]}  f6 {[%clk 0:02:48]} 9. Be3 {[%clk 0:02:36]}  Bd6 {[%clk 0:02:12]} 10. O-O-O {[%clk 0:02:34]}  Kc7 {[%clk 0:02:11]} 11. f5 {[%clk 0:02:26]}  Bf7 {[%clk 0:02:11]} 12. g4 {[%clk 0:02:26]}  h6 {[%clk 0:02:10]} 13. h4 {[%clk 0:02:26]}  Ne7 {[%clk 0:02:03]} 14. Be2 {[%clk 0:02:27]}  b6 {[%clk 0:01:57]} 15. g5 {[%clk 0:02:25]}  hxg5 {[%clk 0:01:53]} 16. hxg5 {[%clk 0:02:26]}  fxg5 {[%clk 0:01:22]} 17. Bxg5 {[%clk 0:02:24]}  Rag8 {[%clk 0:00:40]} 18. a3 {[%clk 0:02:19]}  Nc8 {[%clk 0:00:35]} 19. Rdg1 {[%clk 0:02:16]}  Rxh1 {[%clk 0:00:23]} 20. Rxh1 {[%clk 0:02:17]}  Be7 {[%clk 0:00:23]} 21. Be3 {[%clk 0:02:13]}  Bf6 {[%clk 0:00:21]} 22. Nd1 {[%clk 0:02:08]}  Nd6 {[%clk 0:00:20]} 23. Nf2 {[%clk 0:02:09]}  Nc4 {[%clk 0:00:17]} 24. Bxc4 {[%clk 0:01:46]}  Bxc4 {[%clk 0:00:18]} 25. Ng4 {[%clk 0:01:47]}  c5 {[%clk 0:00:17]} 26. Rh7 {[%clk 0:01:41]}  Kc6 {[%clk 0:00:17]} 27. b3 {[%clk 0:01:41]}  Be2 {[%clk 0:00:17]} 28. Nxf6 {[%clk 0:01:39]}  gxf6 {[%clk 0:00:18]} 29. Rf7 {[%clk 0:01:39]}  Bf3 {[%clk 0:00:16]} 30. Rxf6+ {[%clk 0:01:39]}  Kb5 {[%clk 0:00:17]} 31. a4+ {[%clk 0:01:37]}  Ka6 {[%clk 0:00:17]} 32. Re6 {[%clk 0:01:36]}  Bxe4 {[%clk 0:00:17]} 33. Rxe5 {[%clk 0:01:37]}  Bc6 {[%clk 0:00:13]} 34. f6 {[%clk 0:01:37]}  Rf8 {[%clk 0:00:12]} 35. Rf5 {[%clk 0:01:36]}  Bd7 {[%clk 0:00:11]} 36. Rf2 {[%clk 0:01:36]}  Be6 {[%clk 0:00:11]} 37. Bh6 {[%clk 0:01:36]}  Rf7 {[%clk 0:00:11]} 38. Bg7 {[%clk 0:01:37]}  Rd7 {[%clk 0:00:10]} 39. Re2 {[%clk 0:01:37]}  Bf7 {[%clk 0:00:11]} 40. Kb2 {[%clk 0:01:37]}  Kb7 {[%clk 0:00:11]} 41. Bf8 {[%clk 0:01:31]}  Kc6 {[%clk 0:00:09]} 42. Be7 {[%clk 0:01:31]}  Rd5 {[%clk 0:00:09]} 43. Rh2 {[%clk 0:01:29]}  Rf5 {[%clk 0:00:10]} 44. Rh7 {[%clk 0:01:29]}  Be6 {[%clk 0:00:10]} 45. Rh8 {[%clk 0:01:29]}  a6 {[%clk 0:00:08]} 46. Rh2 {[%clk 0:01:27]}  b5 {[%clk 0:00:08]} 47. a5 {[%clk 0:01:27]}  c4 {[%clk 0:00:08]} 48. Rd2 {[%clk 0:01:26]}  cxb3 {[%clk 0:00:08]} 49. Rd6+ {[%clk 0:01:26]}  Kc5 {[%clk 0:00:06]} 50. Rxe6+ {[%clk 0:01:25]}  Kc4 {[%clk 0:00:06]} 51. cxb3+ {[%clk 0:01:23]}  Kd5 {[%clk 0:00:06]} 52. Re2 {[%clk 0:01:22]} 1-0


[Site "https://www.chess.com"]

[Event "Titled Tuesday Blitz April 18 Early 2023"]
[White "Prudnykova, Olga"]
[Black "Osinenko, Anton"]
[WhiteFideId "14121093"]
[BlackFideId "4158970"]
[WhiteElo "2113"]
[BlackElo "2294"]
[Result "1/2-1/2"]
[Round "04"]
[TimeControl "180+2"]
[Date "2023.04.18"]
[WhiteClock "0:00:03"]
[BlackClock "0:00:02"]

1. e4 {[%clk 0:02:59]}  c5 {[%clk 0:03:00]} 2. Nf3 {[%clk 0:02:58]}  d6 {[%clk 0:03:00]} 3. Nc3 {[%clk 0:02:58]}  Nf6 {[%clk 0:03:00]} 4. e5 {[%clk 0:02:59]}  dxe5 {[%clk 0:02:59]} 5. Nxe5 {[%clk 0:02:59]}  Nbd7 {[%clk 0:02:56]} 6. d4 {[%clk 0:02:59]}  e6 {[%clk 0:02:51]} 7. Bf4 {[%clk 0:02:15]}  cxd4 {[%clk 0:02:39]} 8. Qxd4 {[%clk 0:02:13]}  Bc5 {[%clk 0:02:39]} 9. Qc4 {[%clk 0:02:06]}  Qb6 {[%clk 0:02:31]} 10. Nd3 {[%clk 0:01:30]}  e5 {[%clk 0:01:48]} 11. Nxc5 {[%clk 0:01:16]}  exf4 {[%clk 0:01:47]} 12. Qe2+ {[%clk 0:00:33]}  Kf8 {[%clk 0:01:35]} 13. Nxd7+ {[%clk 0:00:27]}  Bxd7 {[%clk 0:01:36]} 14. O-O-O {[%clk 0:00:26]}  Be6 {[%clk 0:01:26]} 15. Qd2 {[%clk 0:00:25]}  Qc7 {[%clk 0:00:59]} 16. f3 {[%clk 0:00:20]}  a6 {[%clk 0:00:57]} 17. Kb1 {[%clk 0:00:19]}  Ke7 {[%clk 0:00:49]} 18. Be2 {[%clk 0:00:18]}  Rhd8 {[%clk 0:00:49]} 19. Qe1 {[%clk 0:00:18]}  Kf8 {[%clk 0:00:48]} 20. Qh4 {[%clk 0:00:17]}  h6 {[%clk 0:00:43]} 21. Bd3 {[%clk 0:00:17]}  b5 {[%clk 0:00:39]} 22. Ne4 {[%clk 0:00:17]}  Qa5 {[%clk 0:00:24]} 23. b3 {[%clk 0:00:16]}  Nd5 {[%clk 0:00:24]} 24. Kb2 {[%clk 0:00:10]}  b4 {[%clk 0:00:20]} 25. g3 {[%clk 0:00:10]}  Qa3+ {[%clk 0:00:17]} 26. Ka1 {[%clk 0:00:08]}  Rac8 {[%clk 0:00:10]} 27. Bc4 {[%clk 0:00:07]}  Nc3 {[%clk 0:00:09]} 28. Nxc3 {[%clk 0:00:06]}  g5 {[%clk 0:00:03]} 29. Rxd8+ {[%clk 0:00:06]}  Rxd8 {[%clk 0:00:03]} 30. Qxh6+ {[%clk 0:00:06]}  Ke8 {[%clk 0:00:03]} 31. Na4 {[%clk 0:00:04]}  Bxc4 {[%clk 0:00:03]} 32. Qh8+ {[%clk 0:00:03]}  Ke7 {[%clk 0:00:02]} 33. Qe5+ {[%clk 0:00:03]}  Kf8 {[%clk 0:00:01]} 34. Qh8+ {[%clk 0:00:03]}  Ke7 {[%clk 0:00:01]} 35. Qe5+ {[%clk 0:00:03]}  Kf8 {[%clk 0:00:02]} 36. Qh8+ {[%clk 0:00:03]}  Ke7 {[%clk 0:00:02]} 1/2-1/2


[Site "https://www.chess.com"]

[Event "Titled Tuesday Blitz April 18 Early 2023"]
[White "Ordekalog"]
[Black "Makhmudov, Shukhrat"]
[BlackFideId "14200775"]
[WhiteElo "2529"]
[BlackElo "2135"]
[Result "1/2-1/2"]
[Round "04"]
[TimeControl "180+2"]
[Date "2023.04.18"]
[WhiteClock "0:00:23"]
[BlackClock "0:00:50"]

1. e4 {[%clk 0:03:00]}  e5 {[%clk 0:02:57]} 2. Nf3 {[%clk 0:03:00]}  Nc6 {[%clk 0:02:57]} 3. Bb5 {[%clk 0:02:59]}  a6 {[%clk 0:02:57]} 4. Bxc6 {[%clk 0:02:59]}  dxc6 {[%clk 0:02:57]} 5. O-O {[%clk 0:02:58]}  Bg4 {[%clk 0:02:57]} 6. h3 {[%clk 0:02:58]}  h5 {[%clk 0:02:57]} 7. d3 {[%clk 0:02:57]}  Qf6 {[%clk 0:02:58]} 8. Nbd2 {[%clk 0:02:56]}  Ne7 {[%clk 0:02:57]} 9. Re1 {[%clk 0:02:56]}  Ng6 {[%clk 0:02:58]} 10. d4 {[%clk 0:02:54]}  Nf4 {[%clk 0:02:58]} 11. dxe5 {[%clk 0:02:53]}  Qg6 {[%clk 0:02:58]} 12. Nh4 {[%clk 0:02:52]}  Bxd1 {[%clk 0:02:58]} 13. Nxg6 {[%clk 0:02:52]}  Nxg6 {[%clk 0:02:58]} 14. Rxd1 {[%clk 0:02:51]}  O-O-O {[%clk 0:02:55]} 15. Kf1 {[%clk 0:02:42]}  Nxe5 {[%clk 0:02:46]} 16. Ke2 {[%clk 0:02:41]}  Bb4 {[%clk 0:02:42]} 17. a3 {[%clk 0:02:40]}  Be7 {[%clk 0:02:37]} 18. b3 {[%clk 0:02:38]}  Ng6 {[%clk 0:02:34]} 19. Bb2 {[%clk 0:02:29]}  f6 {[%clk 0:02:34]} 20. Nc4 {[%clk 0:02:23]}  c5 {[%clk 0:02:30]} 21. a4 {[%clk 0:02:19]}  b6 {[%clk 0:02:17]} 22. Rxd8+ {[%clk 0:01:54]}  Rxd8 {[%clk 0:02:15]} 23. Bc1 {[%clk 0:01:53]}  Rd4 {[%clk 0:01:59]} 24. f3 {[%clk 0:01:53]}  h4 {[%clk 0:01:57]} 25. Be3 {[%clk 0:01:52]}  Rd7 {[%clk 0:01:56]} 26. Rg1 {[%clk 0:01:42]}  b5 {[%clk 0:01:30]} 27. axb5 {[%clk 0:01:41]}  axb5 {[%clk 0:01:30]} 28. Nd2 {[%clk 0:01:36]}  Bd6 {[%clk 0:01:26]} 29. Ra1 {[%clk 0:01:14]}  Kb7 {[%clk 0:01:25]} 30. c4 {[%clk 0:01:10]}  b4 {[%clk 0:01:24]} 31. Ra5 {[%clk 0:01:08]}  Kb6 {[%clk 0:01:19]} 32. Ra8 {[%clk 0:01:01]}  Bf4 {[%clk 0:01:15]} 33. Nf1 {[%clk 0:00:52]}  Bxe3 {[%clk 0:01:14]} 34. Kxe3 {[%clk 0:00:42]}  Ne5 {[%clk 0:01:13]} 35. f4 {[%clk 0:00:42]}  Nc6 {[%clk 0:01:03]} 36. Rg8 {[%clk 0:00:40]}  Nd4 {[%clk 0:01:00]} 37. Nd2 {[%clk 0:00:37]}  Nc2+ {[%clk 0:01:00]} 38. Ke2 {[%clk 0:00:37]}  Nd4+ {[%clk 0:01:00]} 39. Ke3 {[%clk 0:00:31]}  Nc2+ {[%clk 0:00:56]} 40. Ke2 {[%clk 0:00:30]}  Nd4+ {[%clk 0:00:50]} 41. Ke3 {[%clk 0:00:23]} 1/2-1/2


[Site "https://www.chess.com"]

[Event "Titled Tuesday Blitz April 18 Early 2023"]
[White "Eynullayev, Atilla"]
[Black "Prieto Aranguren, Alain"]
[WhiteFideId "13413570"]
[BlackFideId "2268906"]
[WhiteElo "2181"]
[BlackElo "2209"]
[Result "1-0"]
[Round "04"]
[TimeControl "180+2"]
[Date "2023.04.18"]
[WhiteClock "0:01:06"]
[BlackClock "0:00:43"]

1. d4 {[%clk 0:03:00]}  c6 {[%clk 0:02:52]} 2. c4 {[%clk 0:03:01]}  d5 {[%clk 0:02:52]} 3. Nf3 {[%clk 0:03:01]}  Nf6 {[%clk 0:02:51]} 4. g3 {[%clk 0:03:01]}  e6 {[%clk 0:02:46]} 5. Bg2 {[%clk 0:03:02]}  Be7 {[%clk 0:02:44]} 6. O-O {[%clk 0:03:02]}  O-O {[%clk 0:02:44]} 7. Nbd2 {[%clk 0:03:00]}  Nbd7 {[%clk 0:02:44]} 8. Qc2 {[%clk 0:03:01]}  b6 {[%clk 0:02:43]} 9. e4 {[%clk 0:03:01]}  dxe4 {[%clk 0:02:42]} 10. Nxe4 {[%clk 0:03:02]}  Nxe4 {[%clk 0:02:42]} 11. Qxe4 {[%clk 0:03:03]}  Bb7 {[%clk 0:02:42]} 12. Bf4 {[%clk 0:03:02]}  Nf6 {[%clk 0:02:41]} 13. Qe2 {[%clk 0:02:53]}  c5 {[%clk 0:02:38]} 14. Rad1 {[%clk 0:02:50]}  cxd4 {[%clk 0:02:38]} 15. Nxd4 {[%clk 0:02:49]}  Bxg2 {[%clk 0:02:36]} 16. Kxg2 {[%clk 0:02:49]}  Qc8 {[%clk 0:02:33]} 17. b3 {[%clk 0:02:49]}  Qb7+ {[%clk 0:02:29]} 18. Qf3 {[%clk 0:02:50]}  Qxf3+ {[%clk 0:02:28]} 19. Kxf3 {[%clk 0:02:51]}  Rac8 {[%clk 0:02:11]} 20. Nb5 {[%clk 0:02:51]}  a6 {[%clk 0:02:09]} 21. Nd6 {[%clk 0:02:49]}  Bxd6 {[%clk 0:02:09]} 22. Rxd6 {[%clk 0:02:35]}  b5 {[%clk 0:02:08]} 23. Rxa6 {[%clk 0:02:13]}  bxc4 {[%clk 0:02:07]} 24. b4 {[%clk 0:02:14]}  Nd5 {[%clk 0:02:02]} 25. b5 {[%clk 0:02:14]}  c3 {[%clk 0:01:57]} 26. b6 {[%clk 0:02:00]}  Rc6 {[%clk 0:01:53]} 27. Be3 {[%clk 0:01:51]}  c2 {[%clk 0:01:47]} 28. Rc1 {[%clk 0:01:48]}  Rb8 {[%clk 0:01:43]} 29. a4 {[%clk 0:01:38]}  Nb4 {[%clk 0:01:31]} 30. Ra7 {[%clk 0:01:29]}  Nd3 {[%clk 0:01:30]} 31. Rc7 {[%clk 0:01:29]}  Rbxb6 {[%clk 0:01:12]} 32. Rxc2 {[%clk 0:01:22]}  Rxc2 {[%clk 0:00:56]} 33. Bxb6 {[%clk 0:01:10]}  Rxc7 {[%clk 0:00:54]} 34. Bxc7 {[%clk 0:01:11]}  Nc5 {[%clk 0:00:52]} 35. a5 {[%clk 0:01:11]}  f6 {[%clk 0:00:52]} 36. Ke3 {[%clk 0:01:10]}  Kf7 {[%clk 0:00:52]} 37. Kd4 {[%clk 0:01:10]}  Na6 {[%clk 0:00:51]} 38. Bb6 {[%clk 0:01:06]}  e5+ {[%clk 0:00:50]} 39. Kc4 {[%clk 0:01:04]}  Ke6 {[%clk 0:00:50]} 40. Kb5 {[%clk 0:01:04]}  Nb8 {[%clk 0:00:48]} 41. Bc7 {[%clk 0:01:05]}  Nd7 {[%clk 0:00:43]} 42. a6 {[%clk 0:01:06]} 1-0


[Site "https://www.chess.com"]